[Event "Titled Tuesday Blitz August 09 Early 2022"]
[White "Avinash, Ramesh"]
[Black "Bortnyk, Olexandr"]
[WhiteFideId "45018340"]
[BlackFideId "14120828"]
[WhiteElo "1901"]
[BlackElo "2723"]
[Result "0-1"]
[Round "11"]
[TimeControl "180+1"]
[Date "2022.08.09"]
[WhiteClock "0:00:07"]
[BlackClock "0:00:08"]

1. e4 {[%clk 0:02:59]}  Nf6 {[%clk 0:02:53]} 2. e5 {[%clk 0:02:59]}  Nd5 {[%clk 0:02:53]} 3. c4 {[%clk 0:02:53]}  Nb6 {[%clk 0:02:53]} 4. a4 {[%clk 0:02:51]}  a5 {[%clk 0:02:53]} 5. Ra3 {[%clk 0:02:50]}  d6 {[%clk 0:02:46]} 6. exd6 {[%clk 0:02:48]}  cxd6 {[%clk 0:02:44]} 7. d4 {[%clk 0:02:49]}  Nc6 {[%clk 0:02:43]} 8. Rg3 {[%clk 0:02:45]}  e5 {[%clk 0:02:42]} 9. Nf3 {[%clk 0:02:41]}  Bf5 {[%clk 0:02:41]} 10. Nc3 {[%clk 0:02:38]}  Nb4 {[%clk 0:02:37]} 11. Be2 {[%clk 0:02:38]}  h5 {[%clk 0:01:38]} 12. h4 {[%clk 0:02:21]}  f6 {[%clk 0:01:35]} 13. O-O {[%clk 0:02:17]}  g6 {[%clk 0:01:28]} 14. c5 {[%clk 0:02:12]}  Nd7 {[%clk 0:01:19]} 15. Bb5 {[%clk 0:01:46]}  e4 {[%clk 0:01:15]} 16. Nd2 {[%clk 0:01:43]}  d5 {[%clk 0:01:15]} 17. Qb3 {[%clk 0:01:40]}  Kf7 {[%clk 0:00:51]} 18. Nxd5 {[%clk 0:01:37]}  Be6 {[%clk 0:00:49]} 19. Bc4 {[%clk 0:01:36]}  Nxc5 {[%clk 0:00:44]} 20. dxc5 {[%clk 0:01:34]}  Bxd5 {[%clk 0:00:45]} 21. Bxd5+ {[%clk 0:01:32]}  Qxd5 {[%clk 0:00:46]} 22. Nxe4 {[%clk 0:01:30]}  Qxb3 {[%clk 0:00:42]} 23. Rxb3 {[%clk 0:01:31]}  Rc8 {[%clk 0:00:38]} 24. Be3 {[%clk 0:01:28]}  Be7 {[%clk 0:00:36]} 25. Bd4 {[%clk 0:01:16]}  Rhd8 {[%clk 0:00:34]} 26. Bc3 {[%clk 0:01:15]}  Rd3 {[%clk 0:00:31]} 27. Re1 {[%clk 0:00:46]}  f5 {[%clk 0:00:29]} 28. Nd6+ {[%clk 0:00:41]}  Bxd6 {[%clk 0:00:29]} 29. cxd6 {[%clk 0:00:42]}  Re8 {[%clk 0:00:30]} 30. Rxe8 {[%clk 0:00:39]}  Kxe8 {[%clk 0:00:31]} 31. Ra3 {[%clk 0:00:32]}  Rd1+ {[%clk 0:00:28]} 32. Kh2 {[%clk 0:00:32]}  Rxd6 {[%clk 0:00:26]} 33. Bxb4 {[%clk 0:00:31]}  axb4 {[%clk 0:00:27]} 34. Rb3 {[%clk 0:00:30]}  Rd4 {[%clk 0:00:27]} 35. g3 {[%clk 0:00:26]}  Kd7 {[%clk 0:00:27]} 36. Kg2 {[%clk 0:00:25]}  Kc6 {[%clk 0:00:28]} 37. Re3 {[%clk 0:00:25]}  Kc5 {[%clk 0:00:24]} 38. Re7 {[%clk 0:00:22]}  Kc4 {[%clk 0:00:20]} 39. Rxb7 {[%clk 0:00:16]}  Kb3 {[%clk 0:00:21]} 40. a5 {[%clk 0:00:15]}  Rd6 {[%clk 0:00:12]} 41. Rb6 {[%clk 0:00:15]}  Rd5 {[%clk 0:00:12]} 42. a6 {[%clk 0:00:14]}  Ra5 {[%clk 0:00:13]} 43. Kf3 {[%clk 0:00:13]}  Ra4 {[%clk 0:00:13]} 44. Kf4 {[%clk 0:00:09]}  Kxb2 {[%clk 0:00:14]} 45. a7 {[%clk 0:00:09]}  b3+ {[%clk 0:00:13]} 46. Kg5 {[%clk 0:00:05]}  Rxa7 {[%clk 0:00:14]} 47. Kxg6 {[%clk 0:00:06]}  Kc3 {[%clk 0:00:12]} 48. Kxh5 {[%clk 0:00:06]}  Ra4 {[%clk 0:00:10]} 49. Rxb3+ {[%clk 0:00:05]}  Kxb3 {[%clk 0:00:11]} 50. Kg5 {[%clk 0:00:05]}  Kc4 {[%clk 0:00:10]} 51. Kxf5 {[%clk 0:00:06]}  Kd5 {[%clk 0:00:10]} 52. f4 {[%clk 0:00:05]}  Kd6 {[%clk 0:00:09]} 53. g4 {[%clk 0:00:05]}  Ke7 {[%clk 0:00:09]} 54. h5 {[%clk 0:00:05]}  Kf7 {[%clk 0:00:06]} 55. g5 {[%clk 0:00:05]}  Ra5+ {[%clk 0:00:06]} 56. Kg4 {[%clk 0:00:05]}  Ra4 {[%clk 0:00:04]} 57. Kf5 {[%clk 0:00:05]}  Rb4 {[%clk 0:00:05]} 58. Ke5 {[%clk 0:00:05]}  Rb5+ {[%clk 0:00:05]} 59. Ke4 {[%clk 0:00:06]}  Ke6 {[%clk 0:00:05]} 60. h6 {[%clk 0:00:05]}  Rb4+ {[%clk 0:00:05]} 61. Kf3 {[%clk 0:00:05]}  Kf5 {[%clk 0:00:06]} 62. h7 {[%clk 0:00:05]}  Rb8 {[%clk 0:00:06]} 63. Kg3 {[%clk 0:00:02]}  Rh8 {[%clk 0:00:06]} 64. Kf3 {[%clk 0:00:02]}  Rxh7 {[%clk 0:00:06]} 65. Kg3 {[%clk 0:00:03]}  Ra7 {[%clk 0:00:06]} 66. Kh4 {[%clk 0:00:03]}  Ra4 {[%clk 0:00:05]} 67. Kh5 {[%clk 0:00:04]}  Rxf4 {[%clk 0:00:06]} 68. g6 {[%clk 0:00:05]}  Rg4 {[%clk 0:00:06]} 69. Kh6 {[%clk 0:00:05]}  Rxg6+ {[%clk 0:00:06]} 70. Kh7 {[%clk 0:00:06]}  Kf6 {[%clk 0:00:06]} 71. Kh8 {[%clk 0:00:07]}  Kf7 {[%clk 0:00:07]} 72. Kh7 {[%clk 0:00:07]}  Rf6 {[%clk 0:00:08]} 0-1


[Site "https://www.chess.com"]

[Event "Titled Tuesday Blitz August 09 Early 2022"]
[White "Chigaev, Maksim"]
[Black "Aradhya, Garg"]
[WhiteFideId "4108116"]
[BlackFideId "25006746"]
[WhiteElo "2487"]
[BlackElo "2203"]
[Result "1-0"]
[Round "11"]
[TimeControl "180+1"]
[Date "2022.08.09"]
[WhiteClock "0:00:50"]
[BlackClock "0:00:02"]

1. e4 {[%clk 0:03:00]}  e5 {[%clk 0:02:59]} 2. Nf3 {[%clk 0:02:58]}  Nc6 {[%clk 0:02:59]} 3. Nc3 {[%clk 0:02:58]}  Nf6 {[%clk 0:02:59]} 4. Bb5 {[%clk 0:02:58]}  Bb4 {[%clk 0:02:57]} 5. O-O {[%clk 0:02:57]}  O-O {[%clk 0:02:57]} 6. Bxc6 {[%clk 0:02:58]}  dxc6 {[%clk 0:02:57]} 7. d3 {[%clk 0:02:58]}  Qe7 {[%clk 0:02:54]} 8. Ne2 {[%clk 0:02:55]}  Bd6 {[%clk 0:02:53]} 9. Ng3 {[%clk 0:02:55]}  h6 {[%clk 0:02:52]} 10. Kh1 {[%clk 0:02:53]}  a5 {[%clk 0:02:49]} 11. a4 {[%clk 0:02:51]}  b6 {[%clk 0:02:42]} 12. b3 {[%clk 0:02:50]}  c5 {[%clk 0:02:42]} 13. Nh4 {[%clk 0:02:36]}  g6 {[%clk 0:01:59]} 14. Nf3 {[%clk 0:02:11]}  Kg7 {[%clk 0:01:57]} 15. Bd2 {[%clk 0:02:06]}  Ng8 {[%clk 0:01:51]} 16. Bc3 {[%clk 0:02:05]}  f6 {[%clk 0:01:50]} 17. Nd2 {[%clk 0:02:04]}  Qe6 {[%clk 0:01:42]} 18. Nc4 {[%clk 0:02:03]}  Ne7 {[%clk 0:01:40]} 19. Qd2 {[%clk 0:01:45]}  g5 {[%clk 0:01:34]} 20. f3 {[%clk 0:01:41]}  Kg6 {[%clk 0:01:23]} 21. Ne3 {[%clk 0:01:35]}  Qf7 {[%clk 0:01:17]} 22. Qe2 {[%clk 0:01:28]}  Be6 {[%clk 0:01:00]} 23. Nef5 {[%clk 0:01:04]}  Rad8 {[%clk 0:00:27]} 24. f4 {[%clk 0:00:59]}  exf4 {[%clk 0:00:20]} 25. Qh5+ {[%clk 0:00:53]}  Kh7 {[%clk 0:00:20]} 26. Qxh6+ {[%clk 0:00:53]}  Kg8 {[%clk 0:00:20]} 27. Nh5 {[%clk 0:00:53]}  Be5 {[%clk 0:00:03]} 28. Bxe5 {[%clk 0:00:49]}  Bxf5 {[%clk 0:00:02]} 29. Nxf6+ {[%clk 0:00:48]}  Qxf6 {[%clk 0:00:02]} 30. Bxf6 {[%clk 0:00:49]}  Kf7 {[%clk 0:00:02]} 31. Qg7+ {[%clk 0:00:49]}  Ke6 {[%clk 0:00:02]} 32. Qxe7# {[%clk 0:00:50]} 1-0


[Site "https://www.chess.com"]

[Event "Titled Tuesday Blitz August 09 Early 2022"]
[White "Chyzy, Jakub"]
[Black "Terrieux, Kevin"]
[WhiteFideId "21806209"]
[BlackFideId "622591"]
[WhiteElo "2023"]
[BlackElo "2461"]
[Result "1-0"]
[Round "11"]
[TimeControl "180+1"]
[Date "2022.08.09"]
[WhiteClock "0:00:07"]
[BlackClock "0:00:07"]

1. b3 {[%clk 0:03:00]}  d5 {[%clk 0:02:59]} 2. Bb2 {[%clk 0:03:01]}  Bg4 {[%clk 0:02:59]} 3. h3 {[%clk 0:03:01]}  Bh5 {[%clk 0:02:59]} 4. g4 {[%clk 0:03:00]}  Bg6 {[%clk 0:03:00]} 5. Bg2 {[%clk 0:03:01]}  c6 {[%clk 0:02:58]} 6. f4 {[%clk 0:02:59]}  e6 {[%clk 0:02:52]} 7. Nf3 {[%clk 0:02:59]}  h5 {[%clk 0:02:51]} 8. e3 {[%clk 0:02:51]}  h4 {[%clk 0:02:49]} 9. d3 {[%clk 0:02:45]}  Nd7 {[%clk 0:02:43]} 10. O-O {[%clk 0:02:43]}  Ngf6 {[%clk 0:02:32]} 11. Qe1 {[%clk 0:02:42]}  Ng8 {[%clk 0:02:20]} 12. Kh1 {[%clk 0:02:22]}  f6 {[%clk 0:02:15]} 13. e4 {[%clk 0:02:18]}  Bf7 {[%clk 0:02:12]} 14. f5 {[%clk 0:01:34]}  e5 {[%clk 0:01:41]} 15. g5 {[%clk 0:00:46]}  Ne7 {[%clk 0:01:24]} 16. g6 {[%clk 0:00:37]}  Bg8 {[%clk 0:01:19]} 17. Nxh4 {[%clk 0:00:18]}  dxe4 {[%clk 0:01:06]} 18. dxe4 {[%clk 0:00:16]}  Qc7 {[%clk 0:00:59]} 19. Nd2 {[%clk 0:00:16]}  c5 {[%clk 0:00:57]} 20. Rd1 {[%clk 0:00:15]}  Nc6 {[%clk 0:00:57]} 21. Nhf3 {[%clk 0:00:13]}  Nd4 {[%clk 0:00:55]} 22. c3 {[%clk 0:00:13]}  Nxf3 {[%clk 0:00:51]} 23. Rxf3 {[%clk 0:00:13]}  O-O-O {[%clk 0:00:51]} 24. Rd3 {[%clk 0:00:13]}  Be7 {[%clk 0:00:48]} 25. c4 {[%clk 0:00:11]}  Nb8 {[%clk 0:00:46]} 26. Rxd8+ {[%clk 0:00:11]}  Bxd8 {[%clk 0:00:46]} 27. Nb1 {[%clk 0:00:11]}  Nc6 {[%clk 0:00:44]} 28. Nc3 {[%clk 0:00:11]}  a6 {[%clk 0:00:44]} 29. Nd5 {[%clk 0:00:09]}  Bxd5 {[%clk 0:00:43]} 30. exd5 {[%clk 0:00:10]}  Nd4 {[%clk 0:00:42]} 31. Bxd4 {[%clk 0:00:10]}  exd4 {[%clk 0:00:39]} 32. Qe6+ {[%clk 0:00:09]}  Kb8 {[%clk 0:00:34]} 33. d6 {[%clk 0:00:09]}  Qb6 {[%clk 0:00:32]} 34. Re1 {[%clk 0:00:05]}  Qa5 {[%clk 0:00:29]} 35. Re2 {[%clk 0:00:04]}  Qb6 {[%clk 0:00:25]} 36. Qd5 {[%clk 0:00:04]}  Ka7 {[%clk 0:00:23]} 37. d7 {[%clk 0:00:03]}  Qc7 {[%clk 0:00:22]} 38. Re8 {[%clk 0:00:04]}  Rxh3+ {[%clk 0:00:14]} 39. Bxh3 {[%clk 0:00:03]}  Qg3 {[%clk 0:00:14]} 40. Bg2 {[%clk 0:00:02]}  Qh4+ {[%clk 0:00:14]} 41. Kg1 {[%clk 0:00:03]}  Qe1+ {[%clk 0:00:11]} 42. Kh2 {[%clk 0:00:03]}  Qh4+ {[%clk 0:00:11]} 43. Kg1 {[%clk 0:00:03]}  Qe1+ {[%clk 0:00:12]} 44. Bf1 {[%clk 0:00:04]}  Qg3+ {[%clk 0:00:12]} 45. Qg2 {[%clk 0:00:04]}  Qc7 {[%clk 0:00:11]} 46. Rxd8 {[%clk 0:00:05]}  Qxd8 {[%clk 0:00:11]} 47. Qd5 {[%clk 0:00:05]}  Qc7 {[%clk 0:00:07]} 48. d8=Q {[%clk 0:00:05]}  Qg3+ {[%clk 0:00:07]} 49. Qg2 {[%clk 0:00:06]}  Qe3+ {[%clk 0:00:07]} 50. Qf2 {[%clk 0:00:06]}  Qg5+ {[%clk 0:00:07]} 51. Bg2 {[%clk 0:00:06]}  Qc1+ {[%clk 0:00:07]} 52. Kh2 {[%clk 0:00:06]}  Qh6+ {[%clk 0:00:07]} 53. Bh3 {[%clk 0:00:07]} 1-0


[Site "https://www.chess.com"]

[Event "Titled Tuesday Blitz August 09 Early 2022"]
[White "Clawitter, Craig"]
[Black "Barbashin, Igor"]
[WhiteFideId "2023105"]
[BlackFideId "4155718"]
[WhiteElo "2187"]
[BlackElo "2138"]
[Result "0-1"]
[Round "11"]
[TimeControl "180+1"]
[Date "2022.08.09"]
[WhiteClock "0:00:01"]
[BlackClock "0:00:37"]

1. e4 {[%clk 0:02:54]}  d5 {[%clk 0:02:55]} 2. exd5 {[%clk 0:02:54]}  Nf6 {[%clk 0:02:54]} 3. Bb5+ {[%clk 0:02:53]}  Nbd7 {[%clk 0:02:51]} 4. Be2 {[%clk 0:02:54]}  Nxd5 {[%clk 0:02:43]} 5. d4 {[%clk 0:02:53]}  g6 {[%clk 0:02:39]} 6. c4 {[%clk 0:02:48]}  N5f6 {[%clk 0:02:39]} 7. Nc3 {[%clk 0:02:47]}  Bg7 {[%clk 0:02:40]} 8. b3 {[%clk 0:02:46]}  c5 {[%clk 0:02:18]} 9. dxc5 {[%clk 0:02:46]}  Ne4 {[%clk 0:02:11]} 10. Nxe4 {[%clk 0:02:40]}  Bxa1 {[%clk 0:01:51]} 11. Bh6 {[%clk 0:02:25]}  Be5 {[%clk 0:01:47]} 12. Nf3 {[%clk 0:02:22]}  Qa5+ {[%clk 0:01:41]} 13. Bd2 {[%clk 0:02:12]}  Qc7 {[%clk 0:01:29]} 14. Nxe5 {[%clk 0:02:07]}  Nxe5 {[%clk 0:01:27]} 15. O-O {[%clk 0:01:28]}  O-O {[%clk 0:01:24]} 16. Bh6 {[%clk 0:01:22]}  Rd8 {[%clk 0:01:22]} 17. Qa1 {[%clk 0:01:22]}  Bf5 {[%clk 0:01:17]} 18. Ng3 {[%clk 0:01:13]}  f6 {[%clk 0:01:13]} 19. Nxf5 {[%clk 0:01:05]}  gxf5 {[%clk 0:01:13]} 20. Be3 {[%clk 0:00:48]}  Ng4 {[%clk 0:01:11]} 21. Bxg4 {[%clk 0:00:45]}  fxg4 {[%clk 0:01:12]} 22. f3 {[%clk 0:00:25]}  gxf3 {[%clk 0:01:06]} 23. Rxf3 {[%clk 0:00:25]}  Qd7 {[%clk 0:01:05]} 24. Rg3+ {[%clk 0:00:14]}  Kf7 {[%clk 0:01:02]} 25. Qb2 {[%clk 0:00:09]}  Qd1+ {[%clk 0:00:58]} 26. Kf2 {[%clk 0:00:09]}  Rg8 {[%clk 0:00:56]} 27. Qa3 {[%clk 0:00:02]}  Rxg3 {[%clk 0:00:53]} 28. hxg3 {[%clk 0:00:03]}  Qc2+ {[%clk 0:00:50]} 29. Kf3 {[%clk 0:00:02]}  a6 {[%clk 0:00:45]} 30. c6 {[%clk 0:00:02]}  Qd1+ {[%clk 0:00:43]} 31. Kf2 {[%clk 0:00:01]}  bxc6 {[%clk 0:00:43]} 32. Qc5 {[%clk 0:00:01]}  Qd6 {[%clk 0:00:41]} 33. Qh5+ {[%clk 0:00:01]}  Kg8 {[%clk 0:00:40]} 34. Bh6 {[%clk 0:00:01]}  Qd3 {[%clk 0:00:37]} 0-1


[Site "https://www.chess.com"]

[Event "Titled Tuesday Blitz August 09 Early 2022"]
[White "Dev, Shah"]
[Black "Parpiev, Isaak"]
[WhiteFideId "35019058"]
[BlackFideId "34281576"]
[WhiteElo "2048"]
[BlackElo "2049"]
[Result "1/2-1/2"]
[Round "11"]
[TimeControl "180+1"]
[Date "2022.08.09"]
[WhiteClock "0:00:08"]
[BlackClock "0:00:02"]

1. Nf3 {[%clk 0:03:00]}  Nf6 {[%clk 0:02:58]} 2. g3 {[%clk 0:03:01]}  g6 {[%clk 0:02:57]} 3. d4 {[%clk 0:03:02]}  Bg7 {[%clk 0:02:56]} 4. c4 {[%clk 0:03:03]}  O-O {[%clk 0:02:57]} 5. Nc3 {[%clk 0:03:04]}  d6 {[%clk 0:02:57]} 6. Bg2 {[%clk 0:03:05]}  Nc6 {[%clk 0:02:57]} 7. O-O {[%clk 0:03:05]}  a6 {[%clk 0:02:58]} 8. Bf4 {[%clk 0:03:00]}  Nd7 {[%clk 0:02:52]} 9. Rc1 {[%clk 0:02:58]}  h6 {[%clk 0:02:41]} 10. d5 {[%clk 0:02:55]}  Nce5 {[%clk 0:02:34]} 11. Nxe5 {[%clk 0:02:53]}  Nxe5 {[%clk 0:02:35]} 12. b3 {[%clk 0:02:53]}  c5 {[%clk 0:02:34]} 13. dxc6 {[%clk 0:02:52]}  Nxc6 {[%clk 0:02:34]} 14. Nd5 {[%clk 0:02:50]}  g5 {[%clk 0:02:24]} 15. Be3 {[%clk 0:02:49]}  Be6 {[%clk 0:02:19]} 16. Bb6 {[%clk 0:02:47]}  Qd7 {[%clk 0:02:14]} 17. Nc7 {[%clk 0:02:44]}  Rac8 {[%clk 0:02:14]} 18. Nxe6 {[%clk 0:02:45]}  Qxe6 {[%clk 0:02:05]} 19. Bd5 {[%clk 0:02:36]}  Qd7 {[%clk 0:02:03]} 20. Qd3 {[%clk 0:02:29]}  Nb4 {[%clk 0:02:00]} 21. Qd2 {[%clk 0:02:27]}  Nxd5 {[%clk 0:02:00]} 22. cxd5 {[%clk 0:02:25]}  Rxc1 {[%clk 0:01:57]} 23. Rxc1 {[%clk 0:02:23]}  Rc8 {[%clk 0:01:58]} 24. e4 {[%clk 0:02:15]}  Bf6 {[%clk 0:01:34]} 25. Kg2 {[%clk 0:02:08]}  Kg7 {[%clk 0:01:30]} 26. Bd4 {[%clk 0:02:02]}  Rxc1 {[%clk 0:01:10]} 27. Bxf6+ {[%clk 0:02:01]}  exf6 {[%clk 0:01:08]} 28. Qxc1 {[%clk 0:02:02]}  Qb5 {[%clk 0:01:02]} 29. Qd2 {[%clk 0:01:39]}  Qc5 {[%clk 0:01:02]} 30. Qd3 {[%clk 0:01:35]}  Qc1 {[%clk 0:01:00]} 31. a4 {[%clk 0:01:25]}  Qb2 {[%clk 0:00:51]} 32. Qc4 {[%clk 0:01:20]}  Qd2 {[%clk 0:00:51]} 33. b4 {[%clk 0:01:15]}  Qb2 {[%clk 0:00:38]} 34. b5 {[%clk 0:01:13]}  a5 {[%clk 0:00:38]} 35. h4 {[%clk 0:01:04]}  Qb4 {[%clk 0:00:32]} 36. Qc2 {[%clk 0:00:59]}  Qd4 {[%clk 0:00:32]} 37. hxg5 {[%clk 0:00:50]}  hxg5 {[%clk 0:00:33]} 38. f3 {[%clk 0:00:47]}  b6 {[%clk 0:00:27]} 39. Qc6 {[%clk 0:00:39]}  g4 {[%clk 0:00:20]} 40. Qc2 {[%clk 0:00:31]}  gxf3+ {[%clk 0:00:20]} 41. Kxf3 {[%clk 0:00:32]}  Qc5 {[%clk 0:00:19]} 42. Qd3 {[%clk 0:00:24]}  Qb4 {[%clk 0:00:19]} 43. Qc2 {[%clk 0:00:24]}  Qd4 {[%clk 0:00:19]} 44. Kf4 {[%clk 0:00:22]}  Qe5+ {[%clk 0:00:19]} 45. Kf3 {[%clk 0:00:23]}  f5 {[%clk 0:00:20]} 46. exf5 {[%clk 0:00:19]}  Qxd5+ {[%clk 0:00:20]} 47. Qe4 {[%clk 0:00:20]}  Qb3+ {[%clk 0:00:14]} 48. Kf4 {[%clk 0:00:18]}  Qc3 {[%clk 0:00:12]} 49. g4 {[%clk 0:00:16]}  Qd2+ {[%clk 0:00:12]} 50. Qe3 {[%clk 0:00:15]}  Qxe3+ {[%clk 0:00:10]} 51. Kxe3 {[%clk 0:00:16]}  Kh6 {[%clk 0:00:08]} 52. Kf4 {[%clk 0:00:12]}  f6 {[%clk 0:00:09]} 53. Ke4 {[%clk 0:00:09]}  Kg5 {[%clk 0:00:09]} 54. Kd5 {[%clk 0:00:09]}  Kxg4 {[%clk 0:00:10]} 55. Ke6 {[%clk 0:00:07]}  Kg5 {[%clk 0:00:10]} 56. Kxd6 {[%clk 0:00:06]}  Kxf5 {[%clk 0:00:11]} 57. Kc6 {[%clk 0:00:07]}  Ke4 {[%clk 0:00:11]} 58. Kxb6 {[%clk 0:00:08]}  f5 {[%clk 0:00:12]} 59. Kxa5 {[%clk 0:00:08]}  f4 {[%clk 0:00:12]} 60. b6 {[%clk 0:00:09]}  f3 {[%clk 0:00:13]} 61. b7 {[%clk 0:00:10]}  f2 {[%clk 0:00:14]} 62. b8=Q {[%clk 0:00:10]}  f1=Q {[%clk 0:00:15]} 63. Qb4+ {[%clk 0:00:11]}  Ke3 {[%clk 0:00:14]} 64. Qb3+ {[%clk 0:00:10]}  Kd4 {[%clk 0:00:14]} 65. Qb4+ {[%clk 0:00:10]}  Ke3 {[%clk 0:00:15]} 66. Qb5 {[%clk 0:00:10]}  Qe1+ {[%clk 0:00:14]} 67. Kb6 {[%clk 0:00:09]}  Qh4 {[%clk 0:00:14]} 68. a5 {[%clk 0:00:08]}  Qd8+ {[%clk 0:00:14]} 69. Ka6 {[%clk 0:00:08]}  Qa8+ {[%clk 0:00:14]} 70. Kb6 {[%clk 0:00:08]}  Qd8+ {[%clk 0:00:15]} 71. Kc6 {[%clk 0:00:08]}  Qe8+ {[%clk 0:00:15]} 72. Kc5 {[%clk 0:00:09]}  Qe6 {[%clk 0:00:15]} 73. a6 {[%clk 0:00:06]}  Qe5+ {[%clk 0:00:16]} 74. Kc6 {[%clk 0:00:06]}  Qe8+ {[%clk 0:00:16]} 75. Kb6 {[%clk 0:00:07]}  Qd8+ {[%clk 0:00:16]} 76. Ka7 {[%clk 0:00:07]}  Kf3 {[%clk 0:00:10]} 77. Qb7+ {[%clk 0:00:07]}  Ke2 {[%clk 0:00:07]} 78. Qb5+ {[%clk 0:00:07]}  Ke1 {[%clk 0:00:06]} 79. Kb7 {[%clk 0:00:07]}  Qe7+ {[%clk 0:00:06]} 80. Kb6 {[%clk 0:00:07]}  Qd8+ {[%clk 0:00:05]} 81. Kc6 {[%clk 0:00:08]}  Qe8+ {[%clk 0:00:05]} 82. Kb6 {[%clk 0:00:08]}  Qd8+ {[%clk 0:00:06]} 83. Ka7 {[%clk 0:00:08]}  Qc7+ {[%clk 0:00:05]} 84. Qb7 {[%clk 0:00:08]}  Qc5+ {[%clk 0:00:05]} 85. Kb8 {[%clk 0:00:09]}  Qf8+ {[%clk 0:00:04]} 86. Qc8 {[%clk 0:00:08]}  Qb4+ {[%clk 0:00:03]} 87. Ka8 {[%clk 0:00:07]}  Qe4+ {[%clk 0:00:02]} 88. Qb7 {[%clk 0:00:07]}  Qe8+ {[%clk 0:00:02]} 89. Qb8 {[%clk 0:00:07]}  Qe4+ {[%clk 0:00:02]} 90. Ka7 {[%clk 0:00:08]}  Qe3+ {[%clk 0:00:02]} 91. Kb7 {[%clk 0:00:08]}  Qe4+ {[%clk 0:00:01]} 92. Kc7 {[%clk 0:00:08]}  Qe5+ {[%clk 0:00:02]} 93. Kc8 {[%clk 0:00:08]}  Qe8+ {[%clk 0:00:02]} 94. Kb7 {[%clk 0:00:09]}  Qe4+ {[%clk 0:00:02]} 95. Kb6 {[%clk 0:00:09]}  Qe3+ {[%clk 0:00:02]} 96. Ka5 {[%clk 0:00:09]}  Qa3+ {[%clk 0:00:02]} 97. Kb6 {[%clk 0:00:09]}  Qe3+ {[%clk 0:00:02]} 98. Kc6 {[%clk 0:00:09]}  Qe4+ {[%clk 0:00:02]} 99. Kc5 {[%clk 0:00:09]}  Qe3+ {[%clk 0:00:02]} 100. Kc6 {[%clk 0:00:08]}  Qe4+ {[%clk 0:00:02]} 101. Kd7 {[%clk 0:00:08]}  Qf5+ {[%clk 0:00:02]} 102. Kd8 {[%clk 0:00:08]}  Qf8+ {[%clk 0:00:01]} 103. Kc7 {[%clk 0:00:08]}  Qf4+ {[%clk 0:00:02]} 104. Kb7 {[%clk 0:00:08]}  Qe4+ {[%clk 0:00:02]} 1/2-1/2


[Site "https://www.chess.com"]

[Event "Titled Tuesday Blitz August 09 Early 2022"]
[White "Dushyant Sharma"]
[Black "Yurovskykh, Oleksandr"]
[WhiteFideId "25065130"]
[BlackFideId "14134020"]
[WhiteElo "2133"]
[BlackElo "2292"]
[Result "0-1"]
[Round "11"]
[TimeControl "180+1"]
[Date "2022.08.09"]
[WhiteClock "0:01:17"]
[BlackClock "0:01:48"]

1. e4 {[%clk 0:03:00]}  d5 {[%clk 0:02:59]} 2. exd5 {[%clk 0:03:00]}  Qxd5 {[%clk 0:03:00]} 3. Nc3 {[%clk 0:03:00]}  Qd8 {[%clk 0:03:00]} 4. Bc4 {[%clk 0:02:59]}  c5 {[%clk 0:03:00]} 5. Nf3 {[%clk 0:02:59]}  Nc6 {[%clk 0:02:56]} 6. d3 {[%clk 0:02:59]}  Nf6 {[%clk 0:02:53]} 7. Be3 {[%clk 0:02:58]}  Nd4 {[%clk 0:02:42]} 8. Nb5 {[%clk 0:02:30]}  Bg4 {[%clk 0:02:31]} 9. Nbxd4 {[%clk 0:02:15]}  cxd4 {[%clk 0:02:27]} 10. Ne5 {[%clk 0:01:58]}  Qa5+ {[%clk 0:02:19]} 11. c3 {[%clk 0:01:43]}  Bxd1 {[%clk 0:02:07]} 12. Bxf7+ {[%clk 0:01:37]}  Kd8 {[%clk 0:02:08]} 13. Bxd4 {[%clk 0:01:36]}  Bh5 {[%clk 0:02:04]} 14. Bxh5 {[%clk 0:01:31]}  Nxh5 {[%clk 0:02:05]} 15. Nf7+ {[%clk 0:01:31]}  Kd7 {[%clk 0:01:50]} 16. Nxh8 {[%clk 0:01:29]}  Qd5 {[%clk 0:01:50]} 17. O-O {[%clk 0:01:23]}  Nf4 {[%clk 0:01:50]} 18. f3 {[%clk 0:01:21]}  Ne2+ {[%clk 0:01:50]} 19. Kh1 {[%clk 0:01:22]}  Nxd4 {[%clk 0:01:51]} 20. cxd4 {[%clk 0:01:22]}  Qg8 {[%clk 0:01:48]} 21. Rac1 {[%clk 0:01:20]}  Rc8 {[%clk 0:01:47]} 22. Rc5 {[%clk 0:01:17]}  Rxc5 {[%clk 0:01:47]} 23. dxc5 {[%clk 0:01:18]}  Qxh8 {[%clk 0:01:47]} 24. d4 {[%clk 0:01:18]}  Qg8 {[%clk 0:01:48]} 25. d5 {[%clk 0:01:18]}  Qxd5 {[%clk 0:01:48]} 26. Rd1 {[%clk 0:01:17]}  Qxd1# {[%clk 0:01:48]} 0-1


[Site "https://www.chess.com"]

[Event "Titled Tuesday Blitz August 09 Early 2022"]
[White "Ekdyshman, Mikhail"]
[Black "Shuvalova, Polina"]
[WhiteFideId "4149416"]
[BlackFideId "24171760"]
[WhiteElo "2146"]
[BlackElo "2330"]
[Result "0-1"]
[Round "11"]
[TimeControl "180+1"]
[Date "2022.08.09"]
[WhiteClock "0:00:02"]
[BlackClock "0:00:57"]

1. e4 {[%clk 0:02:59]}  c6 {[%clk 0:02:57]} 2. d4 {[%clk 0:02:58]}  d5 {[%clk 0:02:58]} 3. exd5 {[%clk 0:02:59]}  cxd5 {[%clk 0:02:57]} 4. c4 {[%clk 0:03:00]}  Nf6 {[%clk 0:02:56]} 5. Nc3 {[%clk 0:03:00]}  e6 {[%clk 0:02:57]} 6. Nf3 {[%clk 0:03:00]}  Bb4 {[%clk 0:02:56]} 7. Bd3 {[%clk 0:02:57]}  dxc4 {[%clk 0:02:55]} 8. Bxc4 {[%clk 0:02:57]}  O-O {[%clk 0:02:56]} 9. O-O {[%clk 0:02:57]}  b6 {[%clk 0:02:56]} 10. Re1 {[%clk 0:02:57]}  Bb7 {[%clk 0:02:51]} 11. a3 {[%clk 0:02:57]}  Bxc3 {[%clk 0:02:49]} 12. bxc3 {[%clk 0:02:56]}  Nbd7 {[%clk 0:02:49]} 13. Bg5 {[%clk 0:02:55]}  Qc7 {[%clk 0:02:47]} 14. Qd3 {[%clk 0:02:48]}  Rac8 {[%clk 0:02:45]} 15. Nd2 {[%clk 0:02:40]}  h6 {[%clk 0:02:20]} 16. Be3 {[%clk 0:02:28]}  Nd5 {[%clk 0:02:17]} 17. Rac1 {[%clk 0:02:24]}  N7f6 {[%clk 0:02:08]} 18. h3 {[%clk 0:01:59]}  Rfd8 {[%clk 0:02:04]} 19. Bxd5 {[%clk 0:01:40]}  Nxd5 {[%clk 0:02:00]} 20. c4 {[%clk 0:01:27]}  Nf4 {[%clk 0:02:00]} 21. Bxf4 {[%clk 0:01:26]}  Qxf4 {[%clk 0:02:01]} 22. Nb3 {[%clk 0:01:23]}  Qg5 {[%clk 0:01:52]} 23. Qg3 {[%clk 0:01:18]}  Qxg3 {[%clk 0:01:51]} 24. fxg3 {[%clk 0:01:18]}  Bc6 {[%clk 0:01:50]} 25. d5 {[%clk 0:00:44]}  exd5 {[%clk 0:01:40]} 26. Nd4 {[%clk 0:00:44]}  dxc4 {[%clk 0:01:35]} 27. Rxc4 {[%clk 0:00:43]}  Bd7 {[%clk 0:01:31]} 28. Rxc8 {[%clk 0:00:38]}  Rxc8 {[%clk 0:01:32]} 29. Re7 {[%clk 0:00:39]}  Rd8 {[%clk 0:01:28]} 30. Nf3 {[%clk 0:00:28]}  Kf8 {[%clk 0:01:28]} 31. Re3 {[%clk 0:00:28]}  Be6 {[%clk 0:01:27]} 32. g4 {[%clk 0:00:27]}  Rd5 {[%clk 0:01:26]} 33. Rc3 {[%clk 0:00:26]}  Ra5 {[%clk 0:01:24]} 34. Kf2 {[%clk 0:00:26]}  Ke7 {[%clk 0:01:24]} 35. Ke3 {[%clk 0:00:27]}  Kd6 {[%clk 0:01:24]} 36. Nd4 {[%clk 0:00:27]}  Bd7 {[%clk 0:01:18]} 37. Rd3 {[%clk 0:00:24]}  Ke7 {[%clk 0:01:15]} 38. Rc3 {[%clk 0:00:23]}  g6 {[%clk 0:01:10]} 39. Ke4 {[%clk 0:00:20]}  Kd6 {[%clk 0:01:09]} 40. Rd3 {[%clk 0:00:17]}  Re5+ {[%clk 0:01:10]} 41. Kf3 {[%clk 0:00:16]}  Rd5 {[%clk 0:01:11]} 42. Ke3 {[%clk 0:00:15]}  a6 {[%clk 0:01:07]} 43. Rb3 {[%clk 0:00:10]}  b5 {[%clk 0:01:06]} 44. Nf3 {[%clk 0:00:10]}  Bc6 {[%clk 0:01:05]} 45. Rb2 {[%clk 0:00:08]}  f5 {[%clk 0:01:00]} 46. gxf5 {[%clk 0:00:08]}  Rxf5 {[%clk 0:01:00]} 47. Rc2 {[%clk 0:00:06]}  Bxf3 {[%clk 0:00:57]} 48. gxf3 {[%clk 0:00:06]}  Rh5 {[%clk 0:00:58]} 49. Rg2 {[%clk 0:00:04]}  g5 {[%clk 0:00:57]} 50. Rg3 {[%clk 0:00:02]}  Rh4 {[%clk 0:00:57]} 0-1


[Site "https://www.chess.com"]